Workbook

Sheet Time-Drifting Sensor
B2: Calibration for time-drifting sensor with weighted quadratic fit.
C3: Enter calibration data here | L3: Application to unknowns | AF3: Calibration curves for each unknown sample | AK3: =MAX(AK6:AK52) -> 5 | AL3: =MAX(AL6:AL53) -> 25 | AM3: =MAX(AM6:AM52) ->  | AN3: =MAX(AN6:AN52) ->  | AO3: Normalized weights (Copy/Paste to Column M)
C4: Date/Time | D4: Pre-calibration | E4: Post-calibration | O4: Warnings | T4: X and Y products for POST calibration | Z4: X and Y products for PRE calibration | AF4: Coefficients for each equation | AI4: Peak of parabola
B5: Weights | C5: Concentration of standards | J5: X post | K5: X pre | L5: MM-DD-YY HH:MM:SS | M5: Reading of the unknowns | N5: Calculated concentrations | O5: Instrument reading above maximum of calibration curve | P5: Calculated concentration above maximum standard concentration | Q5: elapsed time,hours | R5: X | S5: Y | T5: X*Y | U5: X*X | V5: X^3 | W5: X^4 | X5: X^2y | Y5: Y | Z5: X*Y | AA5: X*X | AB5: X^3 | AC5: X^4 | AD5: X^2y | AE5: Y | AF5: a | AG5: b | AH5: c | AI5: max x | AJ5: max y | AK5: 1/X | AL5: 1/X^2 | AM5: 1/Y | AN5: 1/Y^2 | AO5: 1/X | AP5: 1/X^2 | AQ5: 1/Y | AR5: 1/Y^2
B6: 1 | C6: 0.1 | D6: 0.2 | J6: =IF(COUNT(E6)=1,C6,0) -> 0 | K6: =IF(COUNT(D6)=1,C6,0) -> 0.1 | N6: =IF(COUNT(L6:M6)=2,(-AG6+SQRT(AG6*AG6-4*AF6*(AH6-M6)))/(2*AF6),"") ->  | O6: =IF(COUNT(L6:M6)=2,IF(M6>AJ6,"Instrument reading too high"," "),"") ->  | P6: =IF(COUNT(L6:M6)=2,IF(N6>MAX($C$6:$C$25),"Above maximum standard"," "),"") ->  | Q6: =IF(COUNT(L6)=1,(L6-$D$5)*24,"") ->  | R6: =IF(COUNT($C6:$D6)=2,C6*$B6,0) -> 0.1 | S6: =IF(COUNT($C6:$D6)=2,E6*$B6,0) -> 0 | T6: =IF(COUNT($C6:$D6)=2,R6*S6*$B6,0) -> 0 | U6: =IF(COUNT($C6:$D6)=2,R6*R6*$B6,0) -> 0.01 | V6: =IF(COUNT($C6:$D6)=2,R6^3*$B6,0) -> 0.001 | W6: =IF(COUNT($C6:$D6)=2,R6^4*$B6,0) -> 0.0001 | X6: =IF(COUNT($C6:$D6)=2,S6*R6^2*$B6,0) -> 0 | Y6: =IF(COUNT(D6)=1,$E6,0) -> 0 | Z6: =IF(COUNT($C6:$D6)=2,R6*AE6*$B6,0) -> 0.02 | AA6: =IF(COUNT($C6:$D6)=2,R6*R6*$B6,0) -> 0.01 | AB6: =IF(COUNT($C6:$D6)=2,R6^3*$B6,0) -> 0.001 | AC6: =IF(COUNT($C6:$D6)=2,R6^4*$B6,0) -> 0.0001 | AD6: =IF(COUNT($C6:$D6)=2,AE6*R6^2*$B6,0) -> 0.002 | AE6: =IF(COUNT(J6)=1,$D6,0) -> 0.2 | AF6: =IF(COUNT(L6:M6)=2,($L6-$D$5)/($E$5-$D$5)*($U$62-$AE$62)+$AE$62,"") ->  | AG6: =IF(COUNT(L6:M6)=2,($L6-$D$5)/($E$5-$D$5)*($U$63-$AE$63)+$AE$63,"") ->  | AH6: =IF(COUNT(L6:M6)=2,($L6-$D$5)/($E$5-$D$5)*($U$64-$AE$64)+$AE$64,"") ->  | AI6: =IF(COUNT(L6:M6)=2,-AG6/(2*AF6),"") ->  | AJ6: =IF(COUNT(L6:M6)=2,AF6*AI6^2+AG6*AI6+AH6,"") ->  | AK6: =IF(COUNT($C6:$D6)=2,1/D6,"") -> 5 | AL6: =IF(COUNT($C6:$D6)=2,1/(D6*D6),"") -> 25 | AM6: =IF(COUNT($C6:$D6)=2,1/E6,"") ->  | AN6: =IF(COUNT($C6:$D6)=2,1/(E6*E6),"") ->  | AO6: =AK6/AK$3 -> 1 | AP6: =AL6/AL$3 -> 1
C7: 0.2 | D7: 0.3 | J7: 0 | K7: 0.2 | R7: =IF(COUNT($C7:$D7)=2,C7*$B7,0) -> 0 | S7: =IF(COUNT($C7:$D7)=2,E7*$B7,0) -> 0 | T7: =IF(COUNT($C7:$D7)=2,R7*S7*$B7,0) -> 0 | U7: =IF(COUNT($C7:$D7)=2,R7*R7*$B7,0) -> 0 | V7: =IF(COUNT($C7:$D7)=2,R7^3*$B7,0) -> 0 | W7: =IF(COUNT($C7:$D7)=2,R7^4*$B7,0) -> 0 | X7: =IF(COUNT($C7:$D7)=2,S7*R7^2*$B7,0) -> 0 | Y7: =IF(COUNT(D7)=1,$E7,0) -> 0 | Z7: =IF(COUNT($C7:$D7)=2,R7*AE7*$B7,0) -> 0 | AA7: =IF(COUNT($C7:$D7)=2,R7*R7*$B7,0) -> 0 | AB7: =IF(COUNT($C7:$D7)=2,R7^3*$B7,0) -> 0 | AC7: =IF(COUNT($C7:$D7)=2,R7^4*$B7,0) -> 0 | AD7: =IF(COUNT($C7:$D7)=2,AE7*R7^2*$B7,0) -> 0 | AE7: =IF(COUNT(D7)=1,$D7,0) -> 0.3 | AF7: =IF(COUNT(L7:M7)=2,($L7-$D$5)/($E$5-$D$5)*($U$62-$AE$62)+$AE$62,"") ->  | AK7: =IF(COUNT($C7:$D7)=2,1/D7,"") -> 3.333333333 | AL7: =IF(COUNT($C7:$D7)=2,1/(D7*D7),"") -> 11.11111111 | AM7: =IF(COUNT($C7:$D7)=2,1/E7,"") ->  | AN7: =IF(COUNT($C7:$D7)=2,1/(E7*E7),"") ->  | AO7: =AK7/AK$3 -> 0.6666666667 | AP7: 0.4444444444
C8: 0.3 | D8: 0.4 | J8: 0 | K8: 0.3 | R8: 0 | S8: 0 | T8: 0 | U8: 0 | V8: 0 | W8: 0 | X8: 0 | Y8: 0 | Z8: 0 | AA8: 0 | AB8: 0 | AC8: 0 | AD8: 0 | AE8: 0.4 | AK8: 2.5 | AL8: 6.25 | AO8: 0.5 | AP8: 0.25
J9: 0 | K9: 0 | R9: 0 | S9: 0 | T9: 0 | U9: 0 | V9: 0 | W9: 0 | X9: 0 | Y9: 0 | Z9: 0 | AA9: 0 | AB9: 0 | AC9: 0 | AD9: 0 | AE9: 0
J10: 0 | K10: 0 | R10: 0 | S10: 0 | T10: 0 | U10: 0 | V10: 0 | W10: 0 | X10: 0 | Y10: 0 | Z10: 0 | AA10: 0 | AB10: 0 | AC10: 0 | AD10: 0 | AE10: 0
J11: 0 | K11: 0 | R11: 0 | S11: 0 | T11: 0 | U11: 0 | V11: 0 | W11: 0 | X11: 0 | Y11: 0 | Z11: 0 | AA11: 0 | AB11: 0 | AC11: 0 | AD11: 0 | AE11: 0
J12: 0 | K12: 0 | R12: 0 | S12: 0 | T12: 0 | U12: 0 | V12: 0 | W12: 0 | X12: 0 | Y12: 0 | Z12: 0 | AA12: 0 | AB12: 0 | AC12: 0 | AD12: 0 | AE12: 0
J13: 0 | K13: 0 | R13: 0 | S13: 0 | T13: 0 | U13: 0 | V13: 0 | W13: 0 | X13: 0 | Y13: 0 | Z13: 0 | AA13: 0 | AB13: 0 | AC13: 0 | AD13: 0 | AE13: 0
J14: 0 | K14: 0 | R14: 0 | S14: 0 | T14: 0 | U14: 0 | V14: 0 | W14: 0 | X14: 0 | Y14: 0 | Z14: 0 | AA14: 0 | AB14: 0 | AC14: 0 | AD14: 0 | AE14: 0
J15: 0 | K15: 0 | R15: 0 | S15: 0 | T15: 0 | U15: 0 | V15: 0 | W15: 0 | X15: 0 | Y15: 0 | Z15: 0 | AA15: 0 | AB15: 0 | AC15: 0 | AD15: 0 | AE15: 0
J16: 0 | K16: 0 | R16: 0 | S16: 0 | T16: 0 | U16: 0 | V16: 0 | W16: 0 | X16: 0 | Y16: 0 | Z16: 0 | AA16: 0 | AB16: 0 | AC16: 0 | AD16: 0 | AE16: 0
J17: 0 | K17: 0 | R17: 0 | S17: 0 | T17: 0 | U17: 0 | V17: 0 | W17: 0 | X17: 0 | Y17: 0 | Z17: 0 | AA17: 0 | AB17: 0 | AC17: 0 | AD17: 0 | AE17: 0
J18: 0 | K18: 0 | R18: 0 | S18: 0 | T18: 0 | U18: 0 | V18: 0 | W18: 0 | X18: 0 | Y18: 0 | Z18: 0 | AA18: 0 | AB18: 0 | AC18: 0 | AD18: 0 | AE18: 0
J19: 0 | K19: 0 | R19: 0 | S19: 0 | T19: 0 | U19: 0 | V19: 0 | W19: 0 | X19: 0 | Y19: 0 | Z19: 0 | AA19: 0 | AB19: 0 | AC19: 0 | AD19: 0 | AE19: 0
J20: 0 | K20: 0 | R20: 0 | S20: 0 | T20: 0 | U20: 0 | V20: 0 | W20: 0 | X20: 0 | Y20: 0 | Z20: 0 | AA20: 0 | AB20: 0 | AC20: 0 | AD20: 0 | AE20: 0
J21: 0 | K21: 0 | R21: 0 | S21: 0 | T21: 0 | U21: 0 | V21: 0 | W21: 0 | X21: 0 | Y21: 0 | Z21: 0 | AA21: 0 | AB21: 0 | AC21: 0 | AD21: 0 | AE21: 0
J22: 0 | K22: 0 | R22: 0 | S22: 0 | T22: 0 | U22: 0 | V22: 0 | W22: 0 | X22: 0 | Y22: 0 | Z22: 0 | AA22: 0 | AB22: 0 | AC22: 0 | AD22: 0 | AE22: 0
J23: 0 | K23: 0 | R23: 0 | S23: 0 | T23: 0 | U23: 0 | V23: 0 | W23: 0 | X23: 0 | Y23: 0 | Z23: 0 | AA23: 0 | AB23: 0 | AC23: 0 | AD23: 0 | AE23: 0
J24: 0 | K24: 0 | R24: 0 | S24: 0 | T24: 0 | U24: 0 | V24: 0 | W24: 0 | X24: 0 | Y24: 0 | Z24: 0 | AA24: 0 | AB24: 0 | AC24: 0 | AD24: 0 | AE24: 0
J25: 0 | K25: 0 | R25: 0 | S25: 0 | T25: 0 | U25: 0 | V25: 0 | W25: 0 | X25: 0 | Y25: 0 | Z25: 0 | AA25: 0 | AB25: 0 | AC25: 0 | AD25: 0 | AE25: 0
G26: Pre-calibration R2 = | H26: =$AJ$91 -> 0.2672064777 | I26: Post-calibration R2 = | K26: =Z91 -> 
E27: =__xlfnodf.DAYS(E5, D5)*24 ->  | F27: hours between pre- and post-calibrations.
B39: Warning: Math follows....
B40: Summary of equations: | E40: =T65 -> y= | F40: 1e-10 | G40: X^2 | H40: + | I40: 0 | J40: x | K40: + | L40: 0
B41: B28 | C41: n=number of x,y data points | E41: =AD65 -> y= | F41: 6 | G41: X^2 | H41: + | I41: 1.4 | J41: x | K41: + | L41: -4.235164736e-18
B42: B27 | C42: sumx=Σx
B43: C27 | C43: sumy=Σy
B44: D27 | C44: sumxy=Σx*y
B45: E27 | C45: sumx2=Σx*x
B46: F27 | C46: sumx3=Σx^3
B47: G27 | C47: sumx3=Σx^4
B48: H27 | C48: sumx2y=Σ(x^2)*y
B49: B30 | C49: D=n*sumx2*sumx4+2*sumx*sumx2*sumx3-sumx2^3-sumx^2*sumx4-n*sumx3^2
B50: B31 | C50: a=(n*sumx2*sumx2y+sumx*sumx3*sumy+sumx*sumx2*sumxy-sumx2^2*sumy-sumx^2*sumx2y-n*sumx3*sumxy)/D
B51: B32 | C51: b=(n*sumx4*sumxy+sumx*sumx2*sumx2y+sumx2*sumx3*sumy-sumx2^2*sumxy-sumx*sumx4*sumy-n*sumx3*sumx2y)/D
B52: B33 | C52: c=(sumx2*sumx4*sumy+sumx2*sumx3*sumxy+sumx*sumx3*sumx2y-sumx2^2*sumx2y-sumx*sumx4*sumxy-sumx3^2*sumy)/D
O53: Off-screen calculation are on the right ==>
T54: Post-calibration | AD54: Pre-calibration
B55: Calculations of the coefficients a,b, and c of the best-fit parabola y=ax^2+bx+c | O55: Note: The if( ) functions in some of the cells | T55: Calculations of the coefficients a,b, and c of the best-fit parabola y=ax^2+bx+c for the LAST calibration (END) | AD55: Calculations of the coefficients a,b, and c of the best-fit parabola y=ax^2+bx+c for the FIRST calibration (START)
B56: sums | C56: sumx | E56: sumy | F56: sumxy | G56: sumx2 | H56: ssy | I56: ssr | J56: sumx2y | O56: are not part of the actual numerical calculation. | T56: sums | U56: sumx | V56: sumy | W56: sumxy | X56: sumx2 | Y56: ssy | Z56: ssr | AA56: sumx2y | AD56: sums | AE56: sumx | AF56: sumy | AG56: sumxy | AH56: sumx2 | AI56: ssy | AJ56: ssr | AK56: sumx2y
C57: ΣX | E57: ΣY | F57: Σ(X*Y) | G57: Σ(X*X) | H57: Σ(X^3) | I57: Σ(X^4) | J57: Σ(X^2)*y | O57: Their purpose is simply to blank out or zero | U57: ΣX | V57: ΣY | W57: Σ(X*Y) | X57: Σ(X*X) | Y57: Σ(X^3) | Z57: Σ(X^4) | AA57: Σ(X^2)*y | AE57: ΣX | AF57: ΣY | AG57: Σ(X*Y) | AH57: Σ(X*X) | AI57: Σ(X^3) | AJ57: Σ(X^4) | AK57: Σ(X^2)*y
C58: =SUM(C6:C25) -> 0.6 | E58: =SUM(E6:E25) -> 0 | F58: =SUM(T6:T25) -> 0 | G58: =SUM(U6:U25) -> 0.01 | H58: =SUM(V6:V25) -> 0.001 | I58: =SUM(W6:W25) -> 0.0001 | J58: =SUM(X6:X25) -> 0 | O58: out cells that are not being used at the moment | U58: =SUM(J6:J25) -> 0 | V58: =SUM(Y6:Y25) -> 0 | W58: =SUM(T6:T25) -> 0 | X58: =SUM(U6:U25) -> 0.01 | Y58: =SUM(V6:V25) -> 0.001 | Z58: =SUM(W6:W25) -> 0.0001 | AA58: =SUM(X6:X25) -> 0 | AE58: =SUM(K6:K25) -> 0.6 | AF58: =SUM(AE6:AE25) -> 0.9 | AG58: =SUM(Z6:Z25) -> 0.02 | AH58: =SUM(AA6:AA25) -> 0.01 | AI58: =SUM(AB6:AB25) -> 0.001 | AJ58: =SUM(AC6:AC25) -> 0.0001 | AK58: =SUM(AD6:AD25) -> 0.002
B59: n | C59: =COUNT(E6:E25) -> 0 | E59: (number of points (n) | T59: n | U59: =COUNT(E6:E25) -> 0 | V59: (number of points (n) | AD59: n | AE59: =COUNT(D6:D25) -> 3 | AF59: (number of points (n)
B61: D | C61: =n*sumx2*sumx4+2*sumx*sumx2*sumx3-sumx2^3-sumx^2*sumx4-n*sumx3^2 -> -1e-06 | E61: Denominator (D) | T61: D | U61: =U59*X58*Z58+2*U58*X58*Y58-X58^3-U58^2*Z58-U59*Y58^2 -> -1e-06 | V61: Denominator (D) | AD61: D | AE61: =AE59*AH58*AJ58+2*AE58*AH58*AI58-AH58^3-AE58^2*AJ58-$AE$59*AI58^2 -> -2.5e-05 | AF61: Denominator (D)
B62: a= | C62: =(n*sumx2*sumx2y+sumx*sumx3*sumy+sumx*sumx2*sumxy-sumx2^2*sumy-sumx^2*sumx2y-n*sumx3*sumxy)/D -> 0 | E62: (coefficient of the X2 term; equals zero if best-fit line is straight) | T62: a= | U62: =10^-10+(U59*sumx2*sumx2y+sumx*sumx3*sumy+sumx*sumx2*sumxy-sumx2^2*sumy-sumx^2*sumx2y-U59*sumx3*sumxy)/D -> 1e-10 | V62: (coefficient of the X2 term; equals zero if best-fit line is straight) | AD62: a= | AE62: =10^-10+(AE59*AH58*AK58+AE58*AI58*AF58+AE58*AH58*AG58-AH58^2*AF58-AE58^2*AK58-AE59*AI58*AG58)/AE61 -> 6 | AF62: (coefficient of the X2 term; equals zero if best-fit line is straight)
B63: b= | C63: =(n*sumx4*sumxy+sumx*sumx2*sumx2y+sumx2*sumx3*sumy-sumx2^2*sumxy-sumx*sumx4*sumy-n*sumx3*sumx2y)/D -> 0 | E63: (coefficient of the X term, like the slope) | T63: b= | U63: =(U59*sumx4*sumxy+sumx*sumx2*sumx2y+sumx2*sumx3*sumy-sumx2^2*sumxy-sumx*sumx4*sumy-U59*sumx3*sumx2y)/D -> 0 | V63: (coefficient of the X term, like the slope) | AD63: b= | AE63: =(AE59*AJ58*AG58+AE58*AH58*AK58+AH58*AI58*AF58-AH58^2*AG58-AE58*AJ58*AF58-AE59*AI58*AK58)/AE61 -> 1.4 | AF63: (coefficient of the X term, like the slope)
B64: c= | C64: =(sumx2*sumx4*sumy+sumx2*sumx3*sumxy+sumx*sumx3*sumx2y-sumx2^2*sumx2y-sumx*sumx4*sumxy-sumx3^2*sumy)/D -> 0 | E64: (the constant, like the intercept) | T64: c= | U64: =(sumx2*sumx4*sumy+sumx2*sumx3*sumxy+sumx*sumx3*sumx2y-sumx2^2*sumx2y-sumx*sumx4*sumxy-sumx3^2*sumy)/D -> 0 | V64: (the constant, like the intercept) | AD64: c= | AE64: =(AH58*AJ58*AF58+AH58*AI58*AG58+AE58*AI58*AK58-AH58^2*AK58-AE58*AJ58*AG58-AI58^2*AF58)/AE61 -> -4.235164736e-18 | AF64: (the constant, like the intercept)
B65: y= | C65: =a -> 1e-10 | E65: X^2 | F65: + | G65: =b -> 0 | H65: x | I65: + | J65: =_c -> 0 | Q65: Equation of best fit (POST) => | T65: y= | U65: =a -> 1e-10 | V65: X^2 | W65: + | X65: =b -> 0 | Y65: x | Z65: + | AA65: =_c -> 0 | AC65: Equation of best fit (PRE) => | AD65: y= | AE65: =AE62 -> 6 | AF65: X^2 | AG65: + | AH65: =AE63 -> 1.4 | AI65: x | AJ65: + | AK65: =AE64 -> -4.235164736e-18
U68: Calculation of post-calibration R2 | AE68: Calculation of pre-calibration R2
U69: Σ(Y-meany)^2 | V69: PredY | X69: Σ(Y-PredY)^2 | Z69: Σ(meanY-PredY)^2 | AE69: Σ(Y-meany)^2 | AF69: PredY | AH69: Σ(Y-PredY)^2 | AJ69: Σ(meanY-PredY)^2
U70: =IF(COUNT(E6)=1,(Y6-$V$58/$U$59)^2,0) -> 0 | V70: =IF(COUNT(E6)=1,a*J6^2+b*J6+_c,0) -> 0 | X70: =IF(COUNT(E6)=1,(Y6-V70)^2,0) -> 0 | Z70: =IF(COUNT(E6)=1,($V$58/$U$59-V70)^2,0) -> 0 | AE70: =IF(COUNT(D6)=1,(AE6-$AF$58/$AE$59)^2,0) -> 0.01 | AF70: =IF(COUNT(D6)=1,$AE$62*K6^2+$AE$63*K6+$AE$64,0) -> 0.2 | AH70: =IF(COUNT(D6)=1,(AE6-AF70)^2,0) -> 9.999002479e-25 | AJ70: =IF(COUNT(D6)=1,($AF$58/$AE$59-AF70)^2,0) -> 0.01
U71: 0 | V71: 0 | X71: 0 | Z71: 0 | AE71: 0 | AF71: 0.52 | AH71: 0.0484 | AJ71: 0.0484
U72: 0 | V72: 0 | X72: 0 | Z72: 0 | AE72: 0.01 | AF72: 0.96 | AH72: 0.3136 | AJ72: 0.4356
U73: 0 | V73: 0 | X73: 0 | Z73: 0 | AE73: 0 | AF73: 0 | AH73: 0 | AJ73: 0
U74: 0 | V74: 0 | X74: 0 | Z74: 0 | AE74: 0 | AF74: 0 | AH74: 0 | AJ74: 0
U75: 0 | V75: 0 | X75: 0 | Z75: 0 | AE75: 0 | AF75: 0 | AH75: 0 | AJ75: 0
U76: 0 | V76: 0 | X76: 0 | Z76: 0 | AE76: 0 | AF76: 0 | AH76: 0 | AJ76: 0
U77: 0 | V77: 0 | X77: 0 | Z77: 0 | AE77: 0 | AF77: 0 | AH77: 0 | AJ77: 0
U78: 0 | V78: 0 | X78: 0 | Z78: 0 | AE78: 0 | AF78: 0 | AH78: 0 | AJ78: 0
U79: 0 | V79: 0 | X79: 0 | Z79: 0 | AE79: 0 | AF79: 0 | AH79: 0 | AJ79: 0
U80: 0 | V80: 0 | X80: 0 | Z80: 0 | AE80: 0 | AF80: 0 | AH80: 0 | AJ80: 0
U81: 0 | V81: 0 | X81: 0 | Z81: 0 | AE81: 0 | AF81: 0 | AH81: 0 | AJ81: 0
U82: 0 | V82: 0 | X82: 0 | Z82: 0 | AE82: 0 | AF82: 0 | AH82: 0 | AJ82: 0
U83: 0 | V83: 0 | X83: 0 | Z83: 0 | AE83: 0 | AF83: 0 | AH83: 0 | AJ83: 0
U84: 0 | V84: 0 | X84: 0 | Z84: 0 | AE84: 0 | AF84: 0 | AH84: 0 | AJ84: 0
U85: 0 | V85: 0 | X85: 0 | Z85: 0 | AE85: 0 | AF85: 0 | AH85: 0 | AJ85: 0
U86: 0 | V86: 0 | X86: 0 | Z86: 0 | AE86: 0 | AF86: 0 | AH86: 0 | AJ86: 0
U87: 0 | V87: 0 | X87: 0 | Z87: 0 | AE87: 0 | AF87: 0 | AH87: 0 | AJ87: 0
U88: 0 | V88: 0 | X88: 0 | Z88: 0 | AE88: 0 | AF88: 0 | AH88: 0 | AJ88: 0
U89: 0 | V89: 0 | X89: 0 | Z89: 0 | AE89: 0 | AF89: 0 | AH89: 0 | AJ89: 0
U90: =SUM(U70:U89) -> 0 | V90: =SUM(V70:V89) -> 0 | X90: =SUM(X70:X89) -> 0 | Z90: =SUM(Z70:Z89) -> 0 | AE90: =SUM(AE70:AE89) -> 0.02 | AF90: =SUM(AF70:AF89) -> 1.68 | AH90: =SUM(AH70:AH89) -> 0.362 | AJ90: =SUM(AJ70:AJ89) -> 0.494
Y91: R2= | Z91: =1-(X90/Z90) ->  | AI91: R2= | AJ91: =1-(AH90/AJ90) -> 0.2672064777

Sheet Sheet2
A1: Post-calibration
A2: Data for fitted curve plot | E2: Post-calibration Residuals
A3: point | B3: X | C3: Ypredicted | E3: Concentrations of the standards | F3: Predicted readings | G3: Actual-predicted | H3: Residuals (% of max reading)
A4: 1 | B4: =MIN('Time-Drifting Sensor'!C6:C25) -> 0.1 | C4: =a*B4^2+b*B4+_c -> 1e-12 | E4: =IF(COUNT('Time-Drifting Sensor'!E6)=1,'Time-Drifting Sensor'!C6) -> FALSE | F4: =IF(COUNT('Time-Drifting Sensor'!E6)=1,a*E4^2+b*E4+_c) -> FALSE | G4: =F4-'Time-Drifting Sensor'!E6 -> 0 | H4: =IF(COUNT($E4)=1,-G4/MAX($F$4:$F$23),"") -> 
A5: 2 | B5: =$B$4+(A4*($B$32-$B$4)/29) -> 0.1068965517 | C5: 1.142687277e-12 | E5: =IF(COUNT('Time-Drifting Sensor'!E7)=1,'Time-Drifting Sensor'!C7) -> FALSE | F5: =IF(COUNT('Time-Drifting Sensor'!E7)=1,a*E5^2+b*E5+_c) -> FALSE | G5: =F5-'Time-Drifting Sensor'!E7 -> 0
A6: 3 | B6: 0.1137931034 | C6: 1.294887039e-12 | E6: =IF(COUNT('Time-Drifting Sensor'!E8)=1,'Time-Drifting Sensor'!C8) -> FALSE | F6: =IF(COUNT('Time-Drifting Sensor'!E8)=1,a*E6^2+b*E6+_c) -> FALSE | G6: =F6-'Time-Drifting Sensor'!E8 -> 0
A7: 4 | B7: 0.1206896552 | C7: 1.456599287e-12 | E7: =IF(COUNT('Time-Drifting Sensor'!E9)=1,'Time-Drifting Sensor'!C9) -> FALSE | F7: =IF(COUNT('Time-Drifting Sensor'!E9)=1,a*E7^2+b*E7+_c) -> FALSE | G7: =F7-'Time-Drifting Sensor'!E9 -> 0
A8: 5 | B8: 0.1275862069 | C8: 1.627824019e-12 | E8: =IF(COUNT('Time-Drifting Sensor'!E10)=1,'Time-Drifting Sensor'!C10) -> FALSE | F8: =IF(COUNT('Time-Drifting Sensor'!E10)=1,a*E8^2+b*E8+_c) -> FALSE | G8: =F8-'Time-Drifting Sensor'!E10 -> 0
A9: 6 | B9: 0.1344827586 | C9: 1.808561237e-12 | E9: =IF(COUNT('Time-Drifting Sensor'!E11)=1,'Time-Drifting Sensor'!C11) -> FALSE | F9: =IF(COUNT('Time-Drifting Sensor'!E11)=1,a*E9^2+b*E9+_c) -> FALSE | G9: =F9-'Time-Drifting Sensor'!E11 -> 0
A10: 7 | B10: 0.1413793103 | C10: 1.998810939e-12 | E10: =IF(COUNT('Time-Drifting Sensor'!E12)=1,'Time-Drifting Sensor'!C12) -> FALSE | F10: =IF(COUNT('Time-Drifting Sensor'!E12)=1,a*E10^2+b*E10+_c) -> FALSE | G10: =F10-'Time-Drifting Sensor'!E12 -> 0
A11: 8 | B11: 0.1482758621 | C11: 2.198573127e-12 | E11: =IF(COUNT('Time-Drifting Sensor'!E13)=1,'Time-Drifting Sensor'!C13) -> FALSE | F11: =IF(COUNT('Time-Drifting Sensor'!E13)=1,a*E11^2+b*E11+_c) -> FALSE | G11: =F11-'Time-Drifting Sensor'!E13 -> 0
A12: 9 | B12: 0.1551724138 | C12: 2.4078478e-12 | E12: =IF(COUNT('Time-Drifting Sensor'!E14)=1,'Time-Drifting Sensor'!C14) -> FALSE | F12: =IF(COUNT('Time-Drifting Sensor'!E14)=1,a*E12^2+b*E12+_c) -> FALSE | G12: =F12-'Time-Drifting Sensor'!E14 -> 0
A13: 10 | B13: 0.1620689655 | C13: 2.626634958e-12 | E13: =IF(COUNT('Time-Drifting Sensor'!E15)=1,'Time-Drifting Sensor'!C15) -> FALSE | F13: =IF(COUNT('Time-Drifting Sensor'!E15)=1,a*E13^2+b*E13+_c) -> FALSE | G13: =F13-'Time-Drifting Sensor'!E15 -> 0
A14: 11 | B14: 0.1689655172 | C14: 2.854934602e-12 | E14: =IF(COUNT('Time-Drifting Sensor'!E16)=1,'Time-Drifting Sensor'!C16) -> FALSE | F14: =IF(COUNT('Time-Drifting Sensor'!E16)=1,a*E14^2+b*E14+_c) -> FALSE | G14: =F14-'Time-Drifting Sensor'!E16 -> 0
A15: 12 | B15: 0.175862069 | C15: 3.09274673e-12 | E15: =IF(COUNT('Time-Drifting Sensor'!E17)=1,'Time-Drifting Sensor'!C17) -> FALSE | F15: =IF(COUNT('Time-Drifting Sensor'!E17)=1,a*E15^2+b*E15+_c) -> FALSE | G15: =F15-'Time-Drifting Sensor'!E17 -> 0
A16: 13 | B16: 0.1827586207 | C16: 3.340071344e-12 | E16: =IF(COUNT('Time-Drifting Sensor'!E18)=1,'Time-Drifting Sensor'!C18) -> FALSE | F16: =IF(COUNT('Time-Drifting Sensor'!E18)=1,a*E16^2+b*E16+_c) -> FALSE | G16: =F16-'Time-Drifting Sensor'!E18 -> 0
A17: 14 | B17: 0.1896551724 | C17: 3.596908442e-12 | E17: =IF(COUNT('Time-Drifting Sensor'!E19)=1,'Time-Drifting Sensor'!C19) -> FALSE | F17: =IF(COUNT('Time-Drifting Sensor'!E19)=1,a*E17^2+b*E17+_c) -> FALSE | G17: =F17-'Time-Drifting Sensor'!E19 -> 0
A18: 15 | B18: 0.1965517241 | C18: 3.863258026e-12 | E18: =IF(COUNT('Time-Drifting Sensor'!E20)=1,'Time-Drifting Sensor'!C20) -> FALSE | F18: =IF(COUNT('Time-Drifting Sensor'!E20)=1,a*E18^2+b*E18+_c) -> FALSE | G18: =F18-'Time-Drifting Sensor'!E20 -> 0
A19: 16 | B19: 0.2034482759 | C19: 4.139120095e-12 | E19: =IF(COUNT('Time-Drifting Sensor'!E21)=1,'Time-Drifting Sensor'!C21) -> FALSE | F19: =IF(COUNT('Time-Drifting Sensor'!E21)=1,a*E19^2+b*E19+_c) -> FALSE | G19: =F19-'Time-Drifting Sensor'!E21 -> 0
A20: 17 | B20: 0.2103448276 | C20: 4.424494649e-12 | E20: =IF(COUNT('Time-Drifting Sensor'!E22)=1,'Time-Drifting Sensor'!C22) -> FALSE | F20: =IF(COUNT('Time-Drifting Sensor'!E22)=1,a*E20^2+b*E20+_c) -> FALSE | G20: =F20-'Time-Drifting Sensor'!E22 -> 0
A21: 18 | B21: 0.2172413793 | C21: 4.719381688e-12 | E21: =IF(COUNT('Time-Drifting Sensor'!E23)=1,'Time-Drifting Sensor'!C23) -> FALSE | F21: =IF(COUNT('Time-Drifting Sensor'!E23)=1,a*E21^2+b*E21+_c) -> FALSE | G21: =F21-'Time-Drifting Sensor'!E23 -> 0
A22: 19 | B22: 0.224137931 | C22: 5.023781213e-12 | E22: =IF(COUNT('Time-Drifting Sensor'!E24)=1,'Time-Drifting Sensor'!C24) -> FALSE | F22: =IF(COUNT('Time-Drifting Sensor'!E24)=1,a*E22^2+b*E22+_c) -> FALSE | G22: =F22-'Time-Drifting Sensor'!E24 -> 0
A23: 20 | B23: 0.2310344828 | C23: 5.337693222e-12 | E23: =IF(COUNT('Time-Drifting Sensor'!E25)=1,'Time-Drifting Sensor'!C25) -> FALSE | F23: =IF(COUNT('Time-Drifting Sensor'!E25)=1,a*E23^2+b*E23+_c) -> FALSE | G23: =F23-'Time-Drifting Sensor'!E25 -> 0
A24: 21 | B24: 0.2379310345 | C24: 5.661117717e-12 | H24: =IF(COUNT(E24)=1,a*E24^2+b*E24+_c,"") -> 
A25: 22 | B25: 0.2448275862 | C25: 5.994054697e-12 | H25: =IF(COUNT(E25)=1,a*E25^2+b*E25+_c,"") -> 
A26: 23 | B26: 0.2517241379 | C26: 6.336504162e-12 | H26: =IF(COUNT(E26)=1,a*E26^2+b*E26+_c,"") -> 
A27: 24 | B27: 0.2586206897 | C27: 6.688466112e-12 | H27: =IF(COUNT(E27)=1,a*E27^2+b*E27+_c,"") -> 
A28: 25 | B28: 0.2655172414 | C28: 7.049940547e-12 | H28: =IF(COUNT(E28)=1,a*E28^2+b*E28+_c,"") -> 
A29: 26 | B29: 0.2724137931 | C29: 7.420927467e-12
A30: 27 | B30: 0.2793103448 | C30: 7.801426873e-12
A31: 28 | B31: 0.2862068966 | C31: 8.191438763e-12
A32: 29 | B32: =MAX('Time-Drifting Sensor'!C6:C25) -> 0.3 | C32: 9e-12
A34: Pre-calibration
A35: Data for fitted curve plot | E35: Pre-calibration Residuals
A36: point | B36: X | C36: Ypredicted | E36: Concentrations of the standards | F36: Predicted readings | G36: Actual-predicted | H36: Residuals (% of max reading)
A37: 1 | B37: =MIN('Time-Drifting Sensor'!C6:C25) -> 0.1 | C37: ='Time-Drifting Sensor'!$AE$62*B37^2+'Time-Drifting Sensor'!$AE$63*B37+'Time-Drifting Sensor'!$AE$64 -> 0.2 | E37: =IF(COUNT('Time-Drifting Sensor'!D6)=1,'Time-Drifting Sensor'!C6) -> 0.1 | F37: =IF(COUNT('Time-Drifting Sensor'!D6)=1,'Time-Drifting Sensor'!$AE$62*E37^2+'Time-Drifting Sensor'!$AE$63*E37+'Time-Drifting Sensor'!$AE$64) -> 0.2 | G37: =F37-'Time-Drifting Sensor'!D6 -> 9.999501227e-13 | H37: =IF(COUNT($E37)=1,-G37/MAX($F$4:$F$23),"") -> 
A38: 2 | B38: =$B$37+(A37*($B$32-$B$4)/29) -> 0.1068965517 | C38: ='Time-Drifting Sensor'!$AE$62*B38^2+'Time-Drifting Sensor'!$AE$63*B38+'Time-Drifting Sensor'!$AE$64 -> 0.218216409 | E38: =IF(COUNT('Time-Drifting Sensor'!D7)=1,'Time-Drifting Sensor'!C7) -> 0.2 | F38: =IF(COUNT('Time-Drifting Sensor'!D7)=1,'Time-Drifting Sensor'!$AE$62*E38^2+'Time-Drifting Sensor'!$AE$63*E38+'Time-Drifting Sensor'!$AE$64) -> 0.52 | G38: =F38-'Time-Drifting Sensor'!D7 -> 0.22
A39: 3 | B39: 0.1137931034 | C39: ='Time-Drifting Sensor'!$AE$62*B39^2+'Time-Drifting Sensor'!$AE$63*B39+'Time-Drifting Sensor'!$AE$64 -> 0.2370035672 | E39: =IF(COUNT('Time-Drifting Sensor'!D8)=1,'Time-Drifting Sensor'!C8) -> 0.3 | F39: =IF(COUNT('Time-Drifting Sensor'!D8)=1,'Time-Drifting Sensor'!$AE$62*E39^2+'Time-Drifting Sensor'!$AE$63*E39+'Time-Drifting Sensor'!$AE$64) -> 0.96 | G39: =F39-'Time-Drifting Sensor'!D8 -> 0.56
A40: 4 | B40: 0.1206896552 | C40: ='Time-Drifting Sensor'!$AE$62*B40^2+'Time-Drifting Sensor'!$AE$63*B40+'Time-Drifting Sensor'!$AE$64 -> 0.2563614744 | E40: =IF(COUNT('Time-Drifting Sensor'!D9)=1,'Time-Drifting Sensor'!C9) -> FALSE | F40: =IF(COUNT('Time-Drifting Sensor'!D9)=1,'Time-Drifting Sensor'!$AE$62*E40^2+'Time-Drifting Sensor'!$AE$63*E40+'Time-Drifting Sensor'!$AE$64) -> FALSE | G40: =F40-'Time-Drifting Sensor'!D9 -> 0
A41: 5 | B41: 0.1275862069 | C41: ='Time-Drifting Sensor'!$AE$62*B41^2+'Time-Drifting Sensor'!$AE$63*B41+'Time-Drifting Sensor'!$AE$64 -> 0.2762901308 | E41: =IF(COUNT('Time-Drifting Sensor'!D10)=1,'Time-Drifting Sensor'!C10) -> FALSE | F41: =IF(COUNT('Time-Drifting Sensor'!D10)=1,'Time-Drifting Sensor'!$AE$62*E41^2+'Time-Drifting Sensor'!$AE$63*E41+'Time-Drifting Sensor'!$AE$64) -> FALSE | G41: =F41-'Time-Drifting Sensor'!D10 -> 0
A42: 6 | B42: 0.1344827586 | C42: ='Time-Drifting Sensor'!$AE$62*B42^2+'Time-Drifting Sensor'!$AE$63*B42+'Time-Drifting Sensor'!$AE$64 -> 0.2967895363 | E42: =IF(COUNT('Time-Drifting Sensor'!D11)=1,'Time-Drifting Sensor'!C11) -> FALSE | F42: =IF(COUNT('Time-Drifting Sensor'!D11)=1,'Time-Drifting Sensor'!$AE$62*E42^2+'Time-Drifting Sensor'!$AE$63*E42+'Time-Drifting Sensor'!$AE$64) -> FALSE | G42: =F42-'Time-Drifting Sensor'!D11 -> 0
A43: 7 | B43: 0.1413793103 | C43: ='Time-Drifting Sensor'!$AE$62*B43^2+'Time-Drifting Sensor'!$AE$63*B43+'Time-Drifting Sensor'!$AE$64 -> 0.3178596908 | E43: =IF(COUNT('Time-Drifting Sensor'!D12)=1,'Time-Drifting Sensor'!C12) -> FALSE | F43: =IF(COUNT('Time-Drifting Sensor'!D12)=1,'Time-Drifting Sensor'!$AE$62*E43^2+'Time-Drifting Sensor'!$AE$63*E43+'Time-Drifting Sensor'!$AE$64) -> FALSE | G43: =F43-'Time-Drifting Sensor'!D12 -> 0
A44: 8 | B44: 0.1482758621 | C44: ='Time-Drifting Sensor'!$AE$62*B44^2+'Time-Drifting Sensor'!$AE$63*B44+'Time-Drifting Sensor'!$AE$64 -> 0.3395005945 | E44: =IF(COUNT('Time-Drifting Sensor'!D13)=1,'Time-Drifting Sensor'!C13) -> FALSE | F44: =IF(COUNT('Time-Drifting Sensor'!D13)=1,'Time-Drifting Sensor'!$AE$62*E44^2+'Time-Drifting Sensor'!$AE$63*E44+'Time-Drifting Sensor'!$AE$64) -> FALSE | G44: =F44-'Time-Drifting Sensor'!D13 -> 0
A45: 9 | B45: 0.1551724138 | C45: ='Time-Drifting Sensor'!$AE$62*B45^2+'Time-Drifting Sensor'!$AE$63*B45+'Time-Drifting Sensor'!$AE$64 -> 0.3617122473 | E45: =IF(COUNT('Time-Drifting Sensor'!D14)=1,'Time-Drifting Sensor'!C14) -> FALSE | F45: =IF(COUNT('Time-Drifting Sensor'!D14)=1,'Time-Drifting Sensor'!$AE$62*E45^2+'Time-Drifting Sensor'!$AE$63*E45+'Time-Drifting Sensor'!$AE$64) -> FALSE | G45: =F45-'Time-Drifting Sensor'!D14 -> 0
A46: 10 | B46: 0.1620689655 | C46: ='Time-Drifting Sensor'!$AE$62*B46^2+'Time-Drifting Sensor'!$AE$63*B46+'Time-Drifting Sensor'!$AE$64 -> 0.3844946492 | E46: =IF(COUNT('Time-Drifting Sensor'!D15)=1,'Time-Drifting Sensor'!C15) -> FALSE | F46: =IF(COUNT('Time-Drifting Sensor'!D15)=1,'Time-Drifting Sensor'!$AE$62*E46^2+'Time-Drifting Sensor'!$AE$63*E46+'Time-Drifting Sensor'!$AE$64) -> FALSE | G46: =F46-'Time-Drifting Sensor'!D15 -> 0
A47: 11 | B47: 0.1689655172 | C47: ='Time-Drifting Sensor'!$AE$62*B47^2+'Time-Drifting Sensor'!$AE$63*B47+'Time-Drifting Sensor'!$AE$64 -> 0.4078478002 | E47: =IF(COUNT('Time-Drifting Sensor'!D16)=1,'Time-Drifting Sensor'!C16) -> FALSE | F47: =IF(COUNT('Time-Drifting Sensor'!D16)=1,'Time-Drifting Sensor'!$AE$62*E47^2+'Time-Drifting Sensor'!$AE$63*E47+'Time-Drifting Sensor'!$AE$64) -> FALSE | G47: =F47-'Time-Drifting Sensor'!D16 -> 0
A48: 12 | B48: 0.175862069 | C48: ='Time-Drifting Sensor'!$AE$62*B48^2+'Time-Drifting Sensor'!$AE$63*B48+'Time-Drifting Sensor'!$AE$64 -> 0.4317717004 | E48: =IF(COUNT('Time-Drifting Sensor'!D17)=1,'Time-Drifting Sensor'!C17) -> FALSE | F48: =IF(COUNT('Time-Drifting Sensor'!D17)=1,'Time-Drifting Sensor'!$AE$62*E48^2+'Time-Drifting Sensor'!$AE$63*E48+'Time-Drifting Sensor'!$AE$64) -> FALSE | G48: =F48-'Time-Drifting Sensor'!D17 -> 0
A49: 13 | B49: 0.1827586207 | C49: ='Time-Drifting Sensor'!$AE$62*B49^2+'Time-Drifting Sensor'!$AE$63*B49+'Time-Drifting Sensor'!$AE$64 -> 0.4562663496 | E49: =IF(COUNT('Time-Drifting Sensor'!D18)=1,'Time-Drifting Sensor'!C18) -> FALSE | F49: =IF(COUNT('Time-Drifting Sensor'!D18)=1,'Time-Drifting Sensor'!$AE$62*E49^2+'Time-Drifting Sensor'!$AE$63*E49+'Time-Drifting Sensor'!$AE$64) -> FALSE | G49: =F49-'Time-Drifting Sensor'!D18 -> 0
A50: 14 | B50: 0.1896551724 | C50: ='Time-Drifting Sensor'!$AE$62*B50^2+'Time-Drifting Sensor'!$AE$63*B50+'Time-Drifting Sensor'!$AE$64 -> 0.4813317479 | E50: =IF(COUNT('Time-Drifting Sensor'!D19)=1,'Time-Drifting Sensor'!C19) -> FALSE | F50: =IF(COUNT('Time-Drifting Sensor'!D19)=1,'Time-Drifting Sensor'!$AE$62*E50^2+'Time-Drifting Sensor'!$AE$63*E50+'Time-Drifting Sensor'!$AE$64) -> FALSE | G50: =F50-'Time-Drifting Sensor'!D19 -> 0
A51: 15 | B51: 0.1965517241 | C51: ='Time-Drifting Sensor'!$AE$62*B51^2+'Time-Drifting Sensor'!$AE$63*B51+'Time-Drifting Sensor'!$AE$64 -> 0.5069678954 | E51: =IF(COUNT('Time-Drifting Sensor'!D20)=1,'Time-Drifting Sensor'!C20) -> FALSE | F51: =IF(COUNT('Time-Drifting Sensor'!D20)=1,'Time-Drifting Sensor'!$AE$62*E51^2+'Time-Drifting Sensor'!$AE$63*E51+'Time-Drifting Sensor'!$AE$64) -> FALSE | G51: =F51-'Time-Drifting Sensor'!D20 -> 0
A52: 16 | B52: 0.2034482759 | C52: ='Time-Drifting Sensor'!$AE$62*B52^2+'Time-Drifting Sensor'!$AE$63*B52+'Time-Drifting Sensor'!$AE$64 -> 0.5331747919 | E52: =IF(COUNT('Time-Drifting Sensor'!D21)=1,'Time-Drifting Sensor'!C21) -> FALSE | F52: =IF(COUNT('Time-Drifting Sensor'!D21)=1,'Time-Drifting Sensor'!$AE$62*E52^2+'Time-Drifting Sensor'!$AE$63*E52+'Time-Drifting Sensor'!$AE$64) -> FALSE | G52: =F52-'Time-Drifting Sensor'!D21 -> 0
A53: 17 | B53: 0.2103448276 | C53: ='Time-Drifting Sensor'!$AE$62*B53^2+'Time-Drifting Sensor'!$AE$63*B53+'Time-Drifting Sensor'!$AE$64 -> 0.5599524376 | E53: =IF(COUNT('Time-Drifting Sensor'!D22)=1,'Time-Drifting Sensor'!C22) -> FALSE | F53: =IF(COUNT('Time-Drifting Sensor'!D22)=1,'Time-Drifting Sensor'!$AE$62*E53^2+'Time-Drifting Sensor'!$AE$63*E53+'Time-Drifting Sensor'!$AE$64) -> FALSE | G53: =F53-'Time-Drifting Sensor'!D22 -> 0
A54: 18 | B54: 0.2172413793 | C54: ='Time-Drifting Sensor'!$AE$62*B54^2+'Time-Drifting Sensor'!$AE$63*B54+'Time-Drifting Sensor'!$AE$64 -> 0.5873008323 | E54: =IF(COUNT('Time-Drifting Sensor'!D23)=1,'Time-Drifting Sensor'!C23) -> FALSE | F54: =IF(COUNT('Time-Drifting Sensor'!D23)=1,'Time-Drifting Sensor'!$AE$62*E54^2+'Time-Drifting Sensor'!$AE$63*E54+'Time-Drifting Sensor'!$AE$64) -> FALSE | G54: =F54-'Time-Drifting Sensor'!D23 -> 0
A55: 19 | B55: 0.224137931 | C55: ='Time-Drifting Sensor'!$AE$62*B55^2+'Time-Drifting Sensor'!$AE$63*B55+'Time-Drifting Sensor'!$AE$64 -> 0.6152199762 | E55: =IF(COUNT('Time-Drifting Sensor'!D24)=1,'Time-Drifting Sensor'!C24) -> FALSE | F55: =IF(COUNT('Time-Drifting Sensor'!D24)=1,'Time-Drifting Sensor'!$AE$62*E55^2+'Time-Drifting Sensor'!$AE$63*E55+'Time-Drifting Sensor'!$AE$64) -> FALSE | G55: =F55-'Time-Drifting Sensor'!D24 -> 0
A56: 20 | B56: 0.2310344828 | C56: ='Time-Drifting Sensor'!$AE$62*B56^2+'Time-Drifting Sensor'!$AE$63*B56+'Time-Drifting Sensor'!$AE$64 -> 0.6437098692 | E56: =IF(COUNT('Time-Drifting Sensor'!D25)=1,'Time-Drifting Sensor'!C25) -> FALSE | F56: =IF(COUNT('Time-Drifting Sensor'!D25)=1,'Time-Drifting Sensor'!$AE$62*E56^2+'Time-Drifting Sensor'!$AE$63*E56+'Time-Drifting Sensor'!$AE$64) -> FALSE | G56: =F56-'Time-Drifting Sensor'!D25 -> 0
A57: 21 | B57: 0.2379310345 | C57: ='Time-Drifting Sensor'!$AE$62*B57^2+'Time-Drifting Sensor'!$AE$63*B57+'Time-Drifting Sensor'!$AE$64 -> 0.6727705113 | H57: =IF(COUNT(E57)=1,a*E57^2+b*E57+_c,"") -> 
A58: 22 | B58: 0.2448275862 | C58: ='Time-Drifting Sensor'!$AE$62*B58^2+'Time-Drifting Sensor'!$AE$63*B58+'Time-Drifting Sensor'!$AE$64 -> 0.7024019025 | H58: =IF(COUNT(E58)=1,a*E58^2+b*E58+_c,"") -> 
A59: 23 | B59: 0.2517241379 | C59: ='Time-Drifting Sensor'!$AE$62*B59^2+'Time-Drifting Sensor'!$AE$63*B59+'Time-Drifting Sensor'!$AE$64 -> 0.7326040428 | H59: =IF(COUNT(E59)=1,a*E59^2+b*E59+_c,"") -> 
A60: 24 | B60: 0.2586206897 | C60: ='Time-Drifting Sensor'!$AE$62*B60^2+'Time-Drifting Sensor'!$AE$63*B60+'Time-Drifting Sensor'!$AE$64 -> 0.7633769322 | H60: =IF(COUNT(E60)=1,a*E60^2+b*E60+_c,"") -> 
A61: 25 | B61: 0.2655172414 | C61: ='Time-Drifting Sensor'!$AE$62*B61^2+'Time-Drifting Sensor'!$AE$63*B61+'Time-Drifting Sensor'!$AE$64 -> 0.7947205708 | H61: =IF(COUNT(E61)=1,a*E61^2+b*E61+_c,"") -> 
A62: 26 | B62: 0.2724137931 | C62: ='Time-Drifting Sensor'!$AE$62*B62^2+'Time-Drifting Sensor'!$AE$63*B62+'Time-Drifting Sensor'!$AE$64 -> 0.8266349584
A63: 27 | B63: 0.2793103448 | C63: ='Time-Drifting Sensor'!$AE$62*B63^2+'Time-Drifting Sensor'!$AE$63*B63+'Time-Drifting Sensor'!$AE$64 -> 0.8591200951
A64: 28 | B64: 0.2862068966 | C64: ='Time-Drifting Sensor'!$AE$62*B64^2+'Time-Drifting Sensor'!$AE$63*B64+'Time-Drifting Sensor'!$AE$64 -> 0.892175981
A65: 29 | B65: =MAX('Time-Drifting Sensor'!C6:C25) -> 0.3 | C65: ='Time-Drifting Sensor'!$AE$62*B65^2+'Time-Drifting Sensor'!$AE$63*B65+'Time-Drifting Sensor'!$AE$64 -> 0.96
